fUSD/lending_fUSD_20250301
["ID","MTS","AMOUNT","RATE_DAILY","PERIOD"]
[354987210,1740856282637,-500.0,0.00027123,2]
[354987211,1740856282647,-500.0,0.00027123,2]
[354987212,1740856282658,-651.25,0.00027123,2]
[354987213,1740856282667,-962.953,0.00027145,2]
[354987214,1740856282678,-408.913,0.00027145,2]
[354987215,1740856282688,-908.0,0.00027145,2]
[354987216,1740856282698,-1426.0,0.00027145,2]
[354987217,1740856282707,-3260.099,0.00027145,2]
[354987218,1740856282717,-150.0,0.00027145,2]
[354987219,1740856282727,-1112.0,0.00027145,2]
[354987220,1740856282737,-3483.26590742,0.00027197,2]
[354987221,1740856282747,-294.83491814,0.00027197,2]
[354987222,1740856282757,-200.39318472,0.000272,30]
[354987223,1740856282766,-159.0,0.000272,16]
[354987224,1740856282776,-3582.24557987,0.00027208,10]
[354987225,1740856282786,-164.01837822,0.00027208,10]
[354987226,1740856282796,-3000.0,0.00027247,2]
[354987227,1740856282806,-8168.49512669,0.00027247,2]
[354987228,1740856282816,-182.79,0.00027248,2]
[354987229,1740856282826,-441.0,0.0002726,2]
[354987230,1740856282835,-441.0,0.0002726,2]
[354987231,1740856282845,-876.05,0.0002726,2]
[354987232,1740856282855,-441.0,0.0002726,2]
[354987233,1740856282864,-441.0,0.0002726,2]
[354987234,1740856282874,-441.0,0.0002726,2]
[354987235,1740856282884,-441.0,0.0002726,2]
[354987236,1740856282893,-441.0,0.0002726,2]
[354987237,1740856282903,-441.0,0.0002726,2]
[354987238,1740856282912,-441.0,0.0002726,2]
[354987239,1740856282922,-441.0,0.0002726,2]
[354987240,1740856282932,-441.0,0.0002726,2]
[354987241,1740856282941,-441.0,0.0002726,2]
[354987242,1740856282951,-458.005424,0.00027278,2]
[354987243,1740856282961,-420.0762983,0.00027278,2]
[354987244,1740856282971,-939.7824583,0.00027278,2]
[354987245,1740856282981,-861.9555917,0.00027278,2]
[354987246,1740856282995,-4517.1877181,0.00027278,2]
[354987247,1740856283004,-4143.1026706,0.00027278,2]
[354987248,1740856283014,-375.2886289,0.00027278,2]
[354987249,1740856283023,-345.0185219,0.00027278,2]
[354987250,1740856283033,-257.9164681,0.00027278,2]
[354987251,1740856283043,-237.1133889,0.00027278,2]
[354987252,1740856283054,-644.77,0.00027296,2]
[354987253,1740856283064,-644.77,0.00027296,2]
[354987254,1740856283074,-644.77,0.00027296,2]
[354987255,1740856283084,-644.77,0.00027296,2]
[354987256,1740856283094,-644.77,0.00027296,2]
[354987257,1740856283104,-644.77,0.00027296,2]
[354987258,1740856283114,-644.77,0.00027296,2]
[354987259,1740856283124,-644.77,0.00027296,2]
[354987260,1740856283134,-644.77,0.00027296,2]
[354987261,1740856283144,-644.82482399,0.00027296,2]
[354987262,1740856283153,-100000.0,0.00027297,5]
[354987263,1740856283164,-1976840.65101866,0.00027297,2]
[354987264,1740856284260,-773.56,0.00026849,2]
[354987265,1740856284271,-773.56,0.00027123,2]
[354987266,1740856284280,-41339.16473694,0.00027297,2]
[354987278,1740856968087,250.0,0.00013,2]
[354987413,1740857432196,-2187.78690079,0.0001499,2]
[354987414,1740857432208,-268.97,0.0001499,2]
[354987415,1740857432219,-500.0,0.00014999,2]
[354987416,1740857432229,-345.13835706,0.00014999,2]
[354987417,1740857432240,-300.0,0.00015,2]
[354987418,1740857432251,-1259.61585626,0.00015,2]
[354987419,1740857432362,-4100.0,0.00015,2]
[354987425,1740857432628,-926.83132358,0.00015,2]
[354987463,1740857440303,-53673.95580134,0.00015,2]
[354987464,1740857440362,-852.46178497,0.00015,2]
[354987465,1740857440375,-892.78500004,0.00015,2]
[354987466,1740857440386,-1695.47939972,0.00015,2]
[354987467,1740857440544,-8428.60635505,0.00015,2]
[354987468,1740857440556,-6779.0951,0.00015,2]
[354987469,1740857440568,-10342.85860827,0.00015,2]
[354987940,1740857446108,-6863.66057956,0.00015,2]
[354987952,1740857446223,-3000.0,0.00015,2]
[354990710,1740857497642,-9000.0,0.00015,2]
[354990715,1740857585534,-500.0,0.00027383,120]
[354990717,1740857910386,494.848,0.000147,2]
[354990718,1740858057842,197.71367599,0.000148,2]
[354990719,1740858064027,197.71367597,0.0001485,2]
[354990720,1740858124422,-4352.60470418,0.000149,2]
[354990721,1740858124450,-2722.5901,0.000149,2]
[354990722,1740858124473,-197.71367597,0.000149,2]
[354990723,1740858124496,-150.0,0.00014925,2]
[354990724,1740858124520,-500.0,0.00014999,2]
[354990725,1740858124547,-2077.09151985,0.00015,2]
[354990726,1740858134400,-160.15174285,0.00014973,2]
[354990727,1740858134427,-9839.84825715,0.00015,2]
[354990728,1740858142335,-10000.0,0.00015,2]
[354990729,1740858152655,-10000.0,0.00015,2]
[354990730,1740858160536,-10000.0,0.00015,2]
[354990731,1740858167710,-10000.0,0.00015,2]
[354990732,1740858182684,-5000.0,0.00015,2]
[354990733,1740858209712,527.17754,0.0001485,2]
[354990740,1740858362490,-634.24147414,0.000149,2]
[354990741,1740858362521,-165.75852586,0.000149,2]
[354990742,1740858364158,-800.0,0.000149,2]
[354990743,1740858365042,-800.0,0.000149,2]
[354990744,1740858365935,-800.0,0.000149,2]
[354990745,1740858366903,-800.0,0.000149,2]
[354990746,1740858367451,-638.62604062,0.000149,2]
[354990747,1740858367477,-150.0,0.0001495,2]
[354990748,1740858367502,-11.37395938,0.00014973,2]
[354990749,1740858368352,-161.67436268,0.00014973,2]
[354990750,1740858368381,-638.32563732,0.00015,2]
[354990751,1740858368798,-800.0,0.00015,2]
[354990752,1740858369844,-800.0,0.00015,2]
[354990753,1740858370377,-800.0,0.00015,2]
[354990754,1740858371333,-800.0,0.00015,2]
[354990755,1740858372315,-800.0,0.00015,2]
[354990756,1740858374515,-800.0,0.00015,2]
[354990777,1740858600810,439.31462,0.0001485,2]
[354990790,1740858632433,-493.52708199,0.00014999,2]
[354990791,1740858632445,-165.18978986,0.00014999,2]
[354990792,1740858632458,-102.15787817,0.00015,2]
[354990793,1740858632578,-863.47296699,0.00015,2]
[354990926,1740858638351,-375.06536329,0.00015,2]
[354991111,1740858640480,-2145.67056135,0.00015,2]
[354991124,1740858640598,-1668.37253002,0.00015,2]
[354991127,1740858640611,-787.36,0.00015,2]
[354991129,1740858640624,-2295.0,0.00015,2]
[354991695,1740858646514,-1542546.86982838,0.00015,2]
[354991697,1740858646525,-1497325.44467856,0.00015,2]
[354991699,1740858646535,-500.0,0.00015273,2]
[354991701,1740858646545,-183.23,0.00015322,2]
[354991703,1740858646554,-510.66518909,0.00015547,2]
[354991704,1740858646564,-2845.52219921,0.00016,2]
[354991706,1740858646573,-634.24147407,0.00016125,2]
[354991708,1740858646583,-150.0,0.00016499,2]
[354991710,1740858646593,-150.0,0.00016499,2]
[354991712,1740858646603,-709.69,0.00016635,2]
[354991714,1740858646613,-350.0,0.00017,2]
[354991716,1740858646622,-371.66831916,0.000173,2]
[354991717,1740858646632,-371.66831912,0.000173,2]
[354991719,1740858646641,-634.24147407,0.0001735,2]
[354991721,1740858646651,-1866.36347775,0.00018,2]
[354991723,1740858646661,-596.82,0.00018002,2]
[354991725,1740858646670,-371.66831912,0.00018245,2]
[354991727,1740858646680,-241.14,0.00018312,2]
[354991728,1740858646689,-634.24147407,0.00018576,2]
[354991730,1740858646699,-4004.38456647,0.00018576,2]
[354991732,1740858646709,-250.0,0.00018596,2]
[354991734,1740858646719,-709.69,0.00018899,2]
[354991736,1740858646728,-400.0,0.00019,2]
[354991738,1740858646738,-77332.59445488,0.00019,2]
[354991740,1740858646748,-2876.16365871,0.00019,2]
[354991741,1740858646758,-961.61,0.00019,2]
[354991743,1740858646768,-1000.0,0.0001902,2]
[354991745,1740858646777,-200.0,0.00019191,2]
[354991747,1740858646787,-371.66831912,0.00019417,2]
[354991749,1740858646796,-11376.11618846,0.000195,2]
[354991751,1740858646805,-23900.0,0.00019574,2]
[354991752,1740858646816,-200.0,0.00019613,2]
[354991754,1740858646825,-634.24147407,0.00019801,2]
[354991756,1740858646835,-4004.38456647,0.00019801,2]
[354991758,1740858646844,-1000.0,0.00019945,2]
[354991760,1740858646854,-12701.7977984,0.00019999,2]
[354991762,1740858646864,-1200.0,0.0002,2]
[354991763,1740858646873,-91255.94862517,0.0002,2]
[354991765,1740858646882,-151.67905147,0.0002,2]
[354991767,1740858646892,-727.13857629,0.00020125,2]
[354991769,1740858646905,-625.78029305,0.00020125,2]
[354991771,1740858646914,-371.66831912,0.0002059,2]
[354991773,1740858646923,-241.14,0.00020601,2]
[354991775,1740858646933,-450.0,0.00021,2]
[354991776,1740858646942,-634.24147407,0.00021026,2]
[354991778,1740858646951,-4004.38456647,0.00021026,2]
[354991780,1740858646961,-709.69,0.00021163,2]
[354991782,1740858646977,-371.66831912,0.00021762,3]
[354991784,1740858646987,-181.92,0.00021918,2]
[354991786,1740858646996,-634.24147407,0.00022251,2]
[354991787,1740858647006,-4004.38456647,0.00022251,2]
[354991789,1740858647015,-1000.0,0.00022439,2]
[354991791,1740858647031,-241.14,0.0002289,2]
[354991793,1740858647041,-371.66831912,0.00022934,3]
[354991795,1740858647050,-500.0,0.00023,2]
[354991796,1740858647060,-500.0,0.0002302,30]
[354991798,1740858647069,-991.93343584,0.0002302,30]
[354991800,1740858647079,-500.0,0.0002302,30]
[354991802,1740858647088,-709.69,0.00023427,2]
[354991804,1740858647097,-634.24147407,0.00023477,2]
[354991806,1740858647107,-4004.38456647,0.00023477,2]
[354991808,1740858647117,-150.0,0.00023699,7]
[354991810,1740858647127,-175.38,0.00023943,2]
[354991811,1740858647136,-6281.99418402,0.00023952,2]
[354991813,1740858647146,-215.11880552,0.00023952,2]
[354991815,1740858647155,-343.26785102,0.00023952,2]
[354991817,1740858647165,-687804.47036596,0.00024,2]
[354991819,1740858647174,-152.258,0.00024052,2]
[354991821,1740858647184,-1414.347,0.00024052,2]
[354991823,1740858647193,-2030.0,0.00024052,2]
[354991825,1740858647203,-801.0,0.00024052,2]
[354991826,1740858647212,-963.372,0.00024052,2]
[354991828,1740858647223,-1435.855,0.00024052,2]
[354991830,1740858647234,-540.0,0.00024052,2]
[354991832,1740858647244,-1280.772,0.00024052,2]
[354991834,1740858647255,-738.805,0.00024052,2]
[354991836,1740858647264,-150.0,0.00024052,2]
[354991838,1740858647274,-718.92,0.00024052,2]
[354991840,1740858647283,-371.66831912,0.00024107,3]
[354991841,1740858647293,-155.3,0.00024565,2]
[354991843,1740858647303,-667.189794,0.00024657,2]
[354991845,1740858647313,-865.056936,0.00024657,2]
[354991847,1740858647325,-150.369306,0.00024657,2]
[354991849,1740858647335,-500.0,0.00024657,2]
[354991851,1740858647344,-500.0,0.00024657,2]
[354991853,1740858647353,-500.0,0.00024657,2]
[354991854,1740858647363,-500.0,0.00024657,2]
[354991856,1740858647372,-500.0,0.00024657,2]
[354991858,1740858647381,-500.0,0.00024657,2]
[354991860,1740858647391,-500.0,0.00024657,2]
[354991862,1740858647400,-500.0,0.00024657,2]
[354991864,1740858647409,-500.0,0.00024657,2]
[354991866,1740858647419,-500.0,0.00024657,2]
[354991868,1740858647430,-500.0,0.00024657,2]
[354991869,1740858647440,-500.0,0.00024657,2]
[354991871,1740858647449,-500.0,0.00024657,2]
[354991873,1740858647458,-500.0,0.00024657,2]
[354991875,1740858647467,-500.0,0.00024657,2]
[354991877,1740858647477,-500.0,0.00024657,2]
[354991879,1740858647487,-500.0,0.00024657,2]
[354991881,1740858647497,-500.0,0.00024657,2]
[354991882,1740858647507,-500.0,0.00024657,2]
[354991884,1740858647516,-500.0,0.00024657,2]
[354991886,1740858647526,-500.0,0.00024657,2]
[354991888,1740858647535,-500.0,0.00024657,2]
[354991890,1740858647545,-500.0,0.00024657,2]
[354991892,1740858647554,-500.0,0.00024657,2]
[354991894,1740858647564,-500.0,0.00024657,2]
[354991895,1740858647573,-500.0,0.00024657,2]
[354991897,1740858647583,-500.0,0.00024657,2]
[354991899,1740858647593,-399.55137874,0.00024657,2]
[354991901,1740858647602,-500.0,0.00024657,2]
[354991903,1740858647611,-500.0,0.00024657,2]
[354991905,1740858647621,-500.0,0.00024657,2]
[354991906,1740858647630,-500.0,0.00024657,2]
[354991908,1740858647639,-500.0,0.00024657,2]
[354991910,1740858647649,-500.0,0.00024657,2]
[354991912,1740858647659,-500.0,0.00024657,2]
[354991914,1740858647669,-500.0,0.00024657,2]
[354991916,1740858647679,-495.64469545,0.00024657,2]
[354991918,1740858647688,-500.0,0.00024657,2]
[354991919,1740858647697,-500.0,0.00024657,2]
[354991921,1740858647707,-500.0,0.00024657,2]
[354991923,1740858647716,-500.0,0.00024657,2]
[354991925,1740858647726,-500.0,0.00024657,2]
[354991927,1740858647736,-500.0,0.00024657,2]
[354991929,1740858647745,-500.0,0.00024657,2]
[354991930,1740858647755,-500.0,0.00024657,2]
[354991932,1740858647764,-500.0,0.00024657,2]
[354991934,1740858647774,-500.0,0.00024657,2]
[354991936,1740858647784,-500.0,0.00024657,2]
[354991938,1740858647793,-500.0,0.00024657,2]
[354991940,1740858647803,-500.0,0.00024657,2]
[354991941,1740858647814,-500.0,0.00024657,2]
[354991943,1740858647823,-500.0,0.00024657,2]
[354991945,1740858647833,-500.0,0.00024657,2]
[354991947,1740858647842,-500.0,0.00024657,2]
[354991949,1740858647852,-500.0,0.00024657,2]
[354991951,1740858647861,-500.0,0.00024657,2]
[354991952,1740858647871,-500.0,0.00024657,2]
[354991954,1740858647880,-500.0,0.00024657,2]
[354991956,1740858647890,-262.11684979,0.00024657,2]
[354991958,1740858647899,-500.0,0.00024657,2]
[354991960,1740858647908,-500.0,0.00024657,2]
[354991962,1740858647918,-500.0,0.00024657,2]
[354991963,1740858647928,-500.0,0.00024657,2]
[354991965,1740858647938,-500.0,0.00024657,2]
[354991967,1740858647948,-500.0,0.00024657,2]
[354991969,1740858647957,-500.0,0.00024657,2]
[354991971,1740858647966,-500.0,0.00024657,2]
[354991973,1740858647976,-500.0,0.00024657,2]
[354991974,1740858647985,-500.0,0.00024657,2]
[354991975,1740858647995,-539.73241236,0.00024657,2]
[354991976,1740858648005,-500.0,0.00024657,2]
[354991977,1740858648015,-500.0,0.00024657,2]
[354991978,1740858648027,-500.0,0.00024657,2]
[354991979,1740858648037,-500.0,0.00024657,2]
[354991980,1740858648047,-500.0,0.00024657,2]
[354991981,1740858648057,-500.0,0.00024657,2]
[354991982,1740858648067,-500.0,0.00024657,2]
[354991983,1740858648077,-500.0,0.00024657,2]
[354991984,1740858648087,-500.0,0.00024657,2]
[354991985,1740858648098,-500.0,0.00024657,2]
[354991986,1740858648108,-500.0,0.00024657,2]
[354991987,1740858648118,-500.0,0.00024657,2]
[354991988,1740858648128,-500.0,0.00024657,2]
[354991989,1740858648138,-500.0,0.00024657,2]
[354991990,1740858648148,-500.0,0.00024657,2]
[354991991,1740858648159,-500.0,0.00024657,2]
[354991992,1740858648169,-500.0,0.00024657,2]
[354991993,1740858648179,-370.98022423,0.00024657,2]
[354991994,1740858648190,-500.0,0.00024657,2]
[354991995,1740858648200,-500.0,0.00024657,2]
[354991996,1740858648210,-500.0,0.00024657,2]
[354991997,1740858648220,-500.0,0.00024657,2]
[354991998,1740858648235,-368.22055765,0.00024657,2]
[354991999,1740858648245,-500.0,0.00024657,2]
[354992000,1740858648255,-500.0,0.00024657,2]
[354992001,1740858648265,-524.67,0.00024657,2]
[354992002,1740858648275,-628.18808951,0.00024657,2]
[354992003,1740858648284,-500.0,0.00024657,2]
[354992004,1740858648295,-500.0,0.00024657,2]
[354992005,1740858648304,-500.0,0.00024657,2]
[354992006,1740858648314,-500.0,0.00024657,2]
[354992007,1740858648324,-500.0,0.00024657,2]
[354992008,1740858648335,-821.57,0.00024657,2]
[354992009,1740858648345,-500.0,0.00024657,2]
[354992010,1740858648354,-500.0,0.00024657,2]
[354992011,1740858648364,-500.0,0.00024657,2]
[354992012,1740858648374,-500.0,0.00024657,2]
[354992013,1740858648383,-1102.93,0.00024657,2]
[354992014,1740858648393,-500.0,0.00024657,2]
[354992016,1740858648403,-507.92,0.00024657,2]
[354992017,1740858648412,-554.05,0.00024657,2]
[354992018,1740858648421,-500.0,0.00024657,2]
[354992020,1740858648431,-500.0,0.00024657,2]
[354992021,1740858648440,-500.0,0.00024657,2]
[354992023,1740858648452,-500.0,0.00024657,2]
[354992024,1740858648464,-500.0,0.00024657,2]
[354992026,1740858648474,-500.0,0.00024657,2]
[354992028,1740858648483,-500.0,0.00024657,2]
[354992030,1740858648492,-500.0,0.00024657,2]
[354992032,1740858648502,-500.0,0.00024657,2]
[354992034,1740858648512,-500.0,0.00024657,2]
[354992036,1740858648521,-500.0,0.00024657,2]
[354992038,1740858648531,-500.0,0.00024657,2]
[354992040,1740858648540,-500.0,0.00024657,2]
[354992042,1740858648549,-500.0,0.00024657,2]
[354992044,1740858648559,-500.0,0.00024657,2]
[354992046,1740858648568,-500.0,0.00024657,2]
[354992048,1740858648577,-500.0,0.00024657,2]
[354992050,1740858648587,-500.0,0.00024657,2]
[354992052,1740858648596,-500.0,0.00024657,2]
[354992054,1740858648606,-500.0,0.00024657,2]
[354992056,1740858648615,-500.0,0.00024657,2]
[354992058,1740858648624,-500.0,0.00024657,2]
[354992060,1740858648634,-500.0,0.00024657,2]
[354992062,1740858648643,-500.0,0.00024657,2]
[354992064,1740858648652,-500.0,0.00024657,2]
[354992066,1740858648661,-500.0,0.00024657,2]
[354992068,1740858648671,-500.0,0.00024657,2]
[354992070,1740858648680,-528.74,0.00024657,2]
[354992072,1740858648690,-500.0,0.00024657,2]
[354992074,1740858648700,-500.0,0.00024657,2]
[354992076,1740858648709,-500.0,0.00024657,2]
[354992078,1740858648720,-500.0,0.00024657,2]
[354992080,1740858648729,-887.94,0.00024657,2]
[354992082,1740858648739,-500.0,0.00024657,2]
[354992084,1740858648749,-500.0,0.00024657,2]
[354992086,1740858648759,-500.0,0.00024657,2]
[354992088,1740858648768,-500.0,0.00024657,2]
[354992090,1740858648778,-504.34,0.00024657,2]
[354992092,1740858648787,-500.0,0.00024657,2]
[354992094,1740858648797,-500.0,0.00024657,2]
[354992096,1740858648807,-626.91,0.00024657,2]
[354992105,1740858648886,-500.0,0.00024657,2]
[354992108,1740858648896,-500.0,0.00024657,2]
[354992110,1740858648906,-500.0,0.00024657,2]
[354992111,1740858648916,-500.0,0.00024657,2]
[354992113,1740858648925,-500.0,0.00024657,2]
[354992115,1740858648935,-724.79,0.00024657,2]
[354992117,1740858648944,-572.85,0.00024657,2]
[354992119,1740858648953,-500.0,0.00024657,2]
[354992121,1740858648963,-500.0,0.00024657,2]
[354992123,1740858648972,-500.0,0.00024657,2]
[354992125,1740858648982,-634.03,0.00024657,2]
[354992127,1740858648991,-544.81,0.00024657,2]
[354992129,1740858649001,-500.0,0.00024657,2]
[354992132,1740858649011,-1225.41,0.00024657,2]
[354992134,1740858649021,-500.0,0.00024657,2]
[354992136,1740858649030,-650.4,0.00024657,2]
[354992138,1740858649040,-1646.57,0.00024657,2]
[354992140,1740858649049,-500.0,0.00024657,2]
[354992142,1740858649059,-500.0,0.00024657,2]
[354992144,1740858649068,-500.0,0.00024657,2]
[354992146,1740858649077,-574.95,0.00024657,2]
[354992148,1740858649087,-500.0,0.00024657,2]
[354992149,1740858649096,-1000.0,0.00024657,2]
[354992152,1740858649106,-548.18,0.00024657,2]
[354992153,1740858649115,-500.0,0.00024657,2]
[354992155,1740858649124,-1162.75,0.00024657,2]
[354992157,1740858649133,-590.55410169,0.00024657,2]
[354992159,1740858649143,-500.0,0.00024657,2]
[354992161,1740858649152,-550.88,0.00024657,2]
[354992163,1740858649162,-500.0,0.00024657,2]
[354992165,1740858649171,-500.0,0.00024657,2]
[354992167,1740858649181,-574.67,0.00024657,2]
[354992169,1740858649190,-282.24623926,0.00024657,2]
[354992171,1740858649200,-216.86124174,0.00024657,2]
[354992173,1740858649209,-500.0,0.00024657,2]
[354992175,1740858649218,-530.38,0.00024657,2]
[354992177,1740858649233,-606.9,0.00024657,2]
[354992179,1740858649242,-500.0,0.00024657,2]
[354992181,1740858649253,-500.0,0.00024657,2]
[354992183,1740858649263,-500.0,0.00024657,2]
[354992185,1740858649273,-731.69,0.00024657,2]
[354992187,1740858649283,-500.0,0.00024657,2]
[354992189,1740858649292,-500.0,0.00024657,2]
[354992191,1740858649302,-500.0,0.00024657,2]
[354992193,1740858649313,-742.69,0.00024657,2]
[354992196,1740858649323,-500.0,0.00024657,2]
[354992197,1740858649333,-500.0,0.00024657,2]
[354992199,1740858649342,-553.15,0.00024657,2]
[354992201,1740858649352,-500.0,0.00024657,2]
[354992203,1740858649362,-500.0,0.00024657,2]
[354992205,1740858649372,-500.0,0.00024657,2]
[354992207,1740858649382,-546.6,0.00024657,2]
[354992209,1740858649392,-938.89,0.00024657,2]
[354992212,1740858649402,-500.0,0.00024657,2]
[354992214,1740858649411,-500.0,0.00024657,2]
[354992216,1740858649421,-500.0,0.00024657,2]
[354992218,1740858649430,-500.0,0.00024657,2]
[354992220,1740858649440,-500.0,0.00024657,2]
[354992222,1740858649450,-500.0,0.00024657,2]
[354992224,1740858649459,-500.0,0.00024657,2]
[354992225,1740858649468,-500.0,0.00024657,2]
[354992227,1740858649478,-500.0,0.00024657,2]
[354992229,1740858649487,-500.0,0.00024657,2]
[354992231,1740858649497,-500.0,0.00024657,2]
[354992234,1740858649507,-500.0,0.00024657,2]
[354992235,1740858649516,-500.0,0.00024657,2]
[354992237,1740858649526,-500.0,0.00024657,2]
[354992239,1740858649535,-702.7,0.00024657,2]
[354992241,1740858649546,-500.0,0.00024657,2]
[354992243,1740858649555,-500.0,0.00024657,2]
[354992245,1740858649564,-500.0,0.00024657,2]
[354992247,1740858649574,-500.0,0.00024657,2]
[354992249,1740858649583,-500.0,0.00024657,2]
[354992251,1740858649593,-500.0,0.00024657,2]
[354992253,1740858649603,-500.0,0.00024657,2]
[354992255,1740858649612,-962.96,0.00024657,2]
[354992257,1740858649621,-871.98,0.00024657,2]
[354992259,1740858649630,-500.0,0.00024657,2]
[354992261,1740858649640,-690.67,0.00024657,2]
[354992263,1740858649649,-4231.37,0.00024657,2]
[354992265,1740858649659,-421.8217826,0.00024657,2]
[354992267,1740858649668,-500.0,0.00024657,2]
[354992269,1740858649677,-500.0,0.00024657,2]
[354992271,1740858649687,-539.33,0.00024657,2]
[354992273,1740858649696,-500.0,0.00024657,2]
[354992275,1740858649705,-741.36,0.00024657,2]
[354992277,1740858649714,-601.03,0.00024657,2]
[354992279,1740858649724,-6071.89,0.00024657,2]
[354992281,1740858649733,-845.71,0.00024657,2]
[354992283,1740858649742,-720.23,0.00024657,2]
[354992285,1740858649754,-569.42,0.00024657,2]
[354992287,1740858649764,-500.0,0.00024657,2]
[354992289,1740858649774,-500.0,0.00024657,2]
[354992291,1740858649784,-500.0,0.00024657,2]
[354992293,1740858649793,-569.65,0.00024657,2]
[354992295,1740858649803,-683.45,0.00024657,2]
[354992297,1740858649812,-838.27,0.00024657,2]
[354992299,1740858649822,-500.0,0.00024657,2]
[354992301,1740858649831,-500.0,0.00024657,2]
[354992303,1740858649842,-837.72,0.00024657,2]
[354992305,1740858649852,-825.34,0.00024657,2]
[354992307,1740858649862,-500.0,0.00024657,2]
[354992309,1740858649872,-500.0,0.00024657,2]
[354992311,1740858649882,-500.0,0.00024657,2]
[354992313,1740858649892,-500.0,0.00024657,2]
[354992315,1740858649901,-500.0,0.00024657,2]
[354992317,1740858649910,-500.0,0.00024657,2]
[354992318,1740858649919,-500.0,0.00024657,2]
[354992320,1740858649929,-500.0,0.00024657,2]
[354992322,1740858649939,-500.0,0.00024657,2]
[354992324,1740858649948,-9196.21,0.00024657,2]
[354992326,1740858649959,-500.0,0.00024657,2]
[354992328,1740858649969,-540.61,0.00024657,2]
[354992330,1740858649978,-500.0,0.00024657,2]
[354992333,1740858649988,-500.0,0.00024657,2]
[354992334,1740858650004,-500.0,0.00024657,2]
[354992336,1740858650013,-500.0,0.00024657,2]
[354992338,1740858650023,-1573.23,0.00024657,2]
[354992340,1740858650032,-500.0,0.00024657,2]
[354992342,1740858650041,-747.87,0.00024657,2]
[354992344,1740858650051,-500.0,0.00024657,2]
[354992346,1740858650061,-970.75,0.00024657,2]
[354992348,1740858650070,-500.0,0.00024657,2]
[354992350,1740858650080,-500.0,0.00024657,2]
[354992352,1740858650089,-1337.47,0.00024657,2]
[354992354,1740858650098,-556.96,0.00024657,2]
[354992356,1740858650109,-500.0,0.00024657,2]
[354992358,1740858650118,-519.03,0.00024657,2]
[354992360,1740858650128,-500.0,0.00024657,2]
[354992362,1740858650137,-500.0,0.00024657,2]
[354992364,1740858650147,-500.0,0.00024657,2]
[354992366,1740858650156,-526.62,0.00024657,2]
[354992368,1740858650166,-500.0,0.00024657,2]
[354992370,1740858650175,-1519.99,0.00024657,2]
[354992372,1740858650185,-500.0,0.00024657,2]
[354992374,1740858650194,-500.0,0.00024657,2]
[354992376,1740858650203,-500.0,0.00024657,2]
[354992378,1740858650212,-3027.82,0.00024657,2]
[354992380,1740858650224,-500.0,0.00024657,2]
[354992382,1740858650237,-500.0,0.00024657,2]
[354992384,1740858650246,-500.0,0.00024657,2]
[354992386,1740858650255,-7102.79,0.00024657,2]
[354992388,1740858650264,-500.0,0.00024657,2]
[354992390,1740858650273,-500.0,0.00024657,2]